Cogmind - Beta 10.2 @@@ ROGUE MODE // 2020.11.08 @ 23:49:30 // Halloween2020/ForbiddenLore Player: WayneKnight Result: Destroyed by G-50 Soldier with Heavy Laser Performance ------------- Evolutions (3) 1500 Regions Visited (13) 2600 Robots Destroyed (162) 810 Value Destroyed (5174) 5174 Prototype IDs (36) 720 Alien Tech Used (0) 0 Bonus (1247) 1247 TOTAL SCORE: 12051 Bonus ------- High Alert Combat Kills 247 Entered Garrisons 200 Used RIF Installer 500 Aligned with FarCom 300 Cogmind --------- Core Integrity 0/700 Matter 215/300 Energy 100/100 System Corruption 0% Temperature Cool (9) Movement Core (1600) Ox31 Location -6/Proximity Caves Parts ------- > --- POWER (1) -------- (None) > --- PROPULSION (4) --- (None) > --- UTILITY (6) ------ High-capacity Storage Unit High-capacity Storage Unit High-capacity Storage Unit Improved Signal Interpreter > --- WEAPON (2) ------- (None) > --- INVENTORY (28) --- Light Nuclear Core Combat Airjet Improved Heat Shielding High-capacity Storage Unit Advanced Sensor Array Long-range Sensor Array Experimental Sensor Array Improved Signal Interpreter Transmission Jammer Insulated Plating Improved Shield Generator Hacking Suite Hacking Suite System Shield System Backup Module Heavy Riot Gun Heavy Riot Gun Advanced EMP Blaster Katana Greatsword Tearclaws Peak State ------------ > --- POWER ------------ Improved Deuterium Engine > --- PROPULSION ------- Medium Treads Potential Leg Armored Huge Wheel > --- UTILITY ---------- High-capacity Storage Unit High-capacity Storage Unit High-capacity Storage Unit Experimental Sensor Array Improved Signal Interpreter Improved Medium Armor Plating > --- WEAPON ----------- AWS/Thermal > --- INVENTORY -------- Light Nuclear Core Combat Airjet High-capacity Storage Unit Lightpack 2.0 Long-range Sensor Array Improved Signal Interpreter Improved Utility Shielding Layered Light Armor Plating Insulated Plating Hacking Suite Hacking Suite System Shield System Backup Module Advanced Beam Rifle Enhanced Autogun Enhanced Autogun Enhanced Autogun Gauss Rifle Flak Gun Flak Gun Advanced EMP Blaster Heavy Missile Launcher Katana Greatsword [Rating: 67] Favorites ----------- Power Improved Deuterium Engine Engine Improved Deuterium Engine Power Core Micro Nuclear Core Propulsion Light Treads Treads Light Treads Leg Potential Leg Wheel Armored Huge Wheel Hover Unit Gravmag System Utility High-capacity Storage Unit Device Experimental Sensor Array Storage High-capacity Storage Unit Processor Improved Signal Interpreter Protection Hardened Medium Armor Plating Weapon Enhanced Autogun Energy Gun Improved EM Shotgun Energy Cannon Advanced Beam Cannon Ballistic Gun Enhanced Autogun Launcher Rocket Launcher Slashing Weapon Katana Build | -11 -10 -10 -9 -9 -9 -8 -8 -8 -7 -7 -7 -7 -6 ------- Run | Scr Mat Min Mat Min Exi Min Mat Gar Fac Low Low Zio Pro Slots Evolved 6 | . . . 2 . . . 2 . 2 . . . . Power . | . . . . . . . . . . . . . . Propulsion 2 | . . . 1 . . . . . 1 . . . . Utility 4 | . . . 1 . . . 2 . 1 . . . . Weapon . | . . . . . . . . . . . . . . Parts Attached 158 | . 7 . 34 5 5 5 28 2 52 7 3 . 10 Power 12 | . . . 6 . . . 2 . 3 . . . 1 Engine 10 | . . . 6 . . . 2 . 2 . . . . Core 2 | . . . . . . . . . 1 . . . 1 Reactor . | . . . . . . . . . . . . . . Propulsion 37 | . 2 . 12 1 3 1 2 . 14 1 . . 1 Treads 22 | . 2 . 11 1 . . 1 . 7 . . . . Leg 10 | . . . 1 . 3 1 1 . 3 1 . . . Wheel 3 | . . . . . . . . . 3 . . . . Hover 2 | . . . . . . . . . 1 . . . 1 Flight . | . . . . . . . . . . . . . . Utility 38 | . 2 . 3 . 2 . 10 . 14 3 1 . 3 Device 8 | . . . . . . . . . 6 1 . . 1 Storage 12 | . 2 . 3 . 2 . 3 . 2 . . . . Processor 2 | . . . . . . . . . 1 1 . . . Hackware . | . . . . . . . . . . . . . . Protection 16 | . . . . . . . 7 . 5 1 1 . 2 Artifact . | . . . . . . . . . . . . . . Weapon 71 | . 3 . 13 4 . 4 14 2 21 3 2 . 5 Energy Gun 15 | . 2 . 1 2 . 3 3 . . 2 . . 2 Energy Cannon 4 | . . . 3 1 . . . . . . . . . Ballistic Gun 34 | . 1 . 9 . . . 7 1 12 . 2 . 2 Ballistic Cannon . | . . . . . . . . . . . . . . Launcher 7 | . . . . 1 . 1 2 1 1 . . . 1 Special Weapon . | . . . . . . . . . . . . . . Impact Weapon . | . . . . . . . . . . . . . . Slashing Weapon 11 | . . . . . . . 2 . 8 1 . . . Piercing Weapon . | . . . . . . . . . . . . . . Special Melee Weapon . | . . . . . . . . . . . . . . Unidentified Prototypes 7 | . . . 4 . . . 2 . 1 . . . . Parts Lost 27 | . . . 2 3 . . 3 . 2 1 2 . 14 Power 4 | . . . 1 . . . . . 1 . . . 2 Propulsion 8 | . . . 1 1 . . . . 1 1 1 . 3 Utility 5 | . . . . . . . 2 . . . 1 . 2 Weapon 10 | . . . . 2 . . 1 . . . . . 7 Highest Loss Streak 8 | . . . 2 2 . . 1 . 1 1 2 . 8 Average Slot Usage (%) 95 | . 99 100 99 100 77 100 95 100 97 86 88 84 81 Engine 8 | . 14 14 11 11 11 11 9 9 4 7 7 7 2 Treads 16 | . 26 28 32 33 26 . 5 9 11 11 3 . . Leg 8 | . 1 . . . 6 33 21 18 12 2 7 7 6 Wheel 1 | . . . . . . . . . 3 7 7 7 5 Device 2 | . . . . . . . . . 8 7 7 7 5 Storage 27 | . 27 28 32 33 33 33 27 27 23 23 23 23 23 Processor 2 | . . . . . . . . . 5 7 7 7 7 Protection 5 | . . . . . . . 13 18 7 6 7 7 7 Energy Gun 4 | . 13 14 . 8 . 21 5 . . 6 7 7 3 Energy Cannon 1 | . . . 6 1 . . . . . . . . . Ballistic Gun 11 | . 14 14 15 9 . . 12 17 12 . 7 7 10 Naked Turns . | . . . . . . . . . . . . . . Heaviest Build 130 | 9 48 48 78 79 88 95 127 130 130 125 122 119 120 Greatest Support 100 | 20 40 40 60 60 70 75 75 60 100 56 28 28 30 Greatest Overweight (x) 34 | . 2 1 1 1 2 1 5 5 9 4 4 4 34 Average Overweight (x) 2 | . 1 1 . 1 1 1 2 4 3 3 4 4 4 Largest Inventory Capacity 28 | 6 16 16 24 24 26 26 28 28 28 28 28 28 28 Average Capacity 24 | 6 15 16 21 24 25 26 26 28 28 28 28 28 28 Most Carried 28 | 6 16 16 24 24 26 26 28 28 28 28 28 28 28 Average Carried 24 | 6 13 15 21 23 24 25 25 28 27 27 27 28 26 Final Capacity 28 | 6 16 16 24 24 26 26 28 28 28 28 28 28 28 Final Carried 28 | 6 16 16 24 24 26 26 28 28 28 28 28 28 23 Class Distribution -------------------- 88% | Hauler-Mutant 11% | Mutant Dominant Class ---------------- Mutant | -10/Materials Mutant | -10/Mines Hauler-Mutant | -9/Materials Hauler-Mutant | -9/Mines Hauler-Mutant | -9/Exiles Hauler-Mutant | -8/Mines Hauler-Mutant | -8/Materials Hauler-Mutant | -8/Garrison Hauler-Mutant | -7/Factory Hauler-Mutant | -7/Lower Caves Hauler-Mutant | -7/Lower Caves Hauler-Mutant | -7/Zion Hauler-Mutant | -6/Proximity Caves Resources | -11 -10 -10 -9 -9 -9 -8 -8 -8 -7 -7 -7 -7 -6 ----------- Run | Scr Mat Min Mat Min Exi Min Mat Gar Fac Low Low Zio Pro Matter Collected 3918 | 212 90 26 816 186 . 173 843 117 1104 166 83 . 102 Remotely . | . . . . . . . . . . . . . . Salvage Created 6325 | 75 182 86 1640 245 . 208 1392 170 1344 619 70 . 294 Parts 367 | 1 22 6 110 15 . 11 84 12 73 22 2 . 9 Haulers Intercepted 7 | . . . 4 . . . 2 . 1 . . . . Recyclers Shooed 3 | . . . 1 . . . . . 2 . . . . Parts Field Recycled . | . . . . . . . . . . . . . . Retrieved Matter . | . . . . . . . . . . . . . . Parts Self-Destructed 39 | . . . . . . . . . . 22 10 . 7 Prevented 2 | . . . . . . . . . . . . . 2 Kills | -11 -10 -10 -9 -9 -9 -8 -8 -8 -7 -7 -7 -7 -6 ------- Run | Scr Mat Min Mat Min Exi Min Mat Gar Fac Low Low Zio Pro Combat Hostiles Destroyed 138 | . 7 2 30 10 . 5 30 6 26 14 1 . 7 Guns 111 | . 7 2 18 5 . 2 27 5 24 13 1 . 7 Cannons 14 | . . . 12 2 . . . . . . . . . AOE 11 | . . . . 3 . 3 2 1 2 . . . . Classes Destroyed 16 | 1 2 . 7 1 . 1 1 . 2 . . . 1 Worker 3 | . . . 2 . . . 1 . . . . . . Builder 1 | . . . 1 . . . . . . . . . . Hauler 7 | . . . 4 . . . 2 . 1 . . . . Recycler 4 | 1 . . 2 1 . . . . . . . . . Operator 1 | . . . 1 . . . . . . . . . . Watcher 8 | . . . 3 . . . 4 . 1 . . . . Swarmer 50 | . 5 . 7 6 . . 14 3 5 6 . . 4 Grunt 47 | . 2 2 13 1 . 3 7 2 10 6 . . 1 Brawler 1 | . . . . . . . 1 . . . . . . Duelist 3 | . . . 1 1 . . 1 . . . . . . Protector 1 | . . . . . . . . . 1 . . . . Sentry 26 | . . . 9 . . . 7 1 5 2 1 . 1 Demolisher 2 | . . . . 2 . . . . . . . . . Hunter 2 | . . . . . . 2 . . . . . . . Programmer 5 | . . . . . . . . . 5 . . . . Behemoth 1 | . . . . . . . . . . . . . 1 Best Kill Streak 10 | 1 4 1 5 3 . 3 4 3 5 10 1 . 3 Combat Bots Only 10 | . 4 1 4 3 . 3 4 3 5 10 1 . 3 Max Kills in Single Turn 3 | 1 2 1 2 3 . 2 2 1 2 1 1 . 1 Gunslinging 1 | . 1 . . . . . 1 . 1 . . . . Exploded 3 | . . . . 3 . 2 2 1 1 . . . . Melee . | . . . . . . . . . . . . . . Uniques/NPCs Destroyed . | . . . . . . . . . . . . . . Combat | -11 -10 -10 -9 -9 -9 -8 -8 -8 -7 -7 -7 -7 -6 -------- Run | Scr Mat Min Mat Min Exi Min Mat Gar Fac Low Low Zio Pro Damage Taken 9412 | . 184 27 1441 579 . 204 1540 93 2617 791 188 . 1748 Core 1246 | . 49 16 174 84 . 52 153 . 329 50 24 . 315 Absorbed by Shields . | . . . . . . . . . . . . . . Core Remaining (%) 67 | 100 . 74 . . . 22 . 72 . . . . . Volleys Fired 463 | 6 12 6 109 23 . 11 129 11 110 . 14 . 32 Largest 2 | 2 2 2 2 2 . 2 2 2 2 . 2 . 2 Hottest 93 | 40 63 63 91 91 . 90 90 50 53 . 93 . 93 Shots Fired 970 | 12 24 10 218 45 . 16 254 17 217 65 24 . 68 Gun 864 | 12 24 10 144 29 . 10 253 12 214 65 24 . 67 Cannon 89 | . . . 74 15 . . . . . . . . . Launcher 17 | . . . . 1 . 6 1 5 3 . . . 1 Special . | . . . . . . . . . . . . . . Kinetic 671 | 12 12 4 144 27 . . 185 12 214 . 14 . 47 Thermal 165 | . . . 74 15 . . . . . 65 . . 11 Explosive 17 | . . . . 1 . 6 1 5 3 . . . 1 Electromagnetic 117 | . 12 6 . 2 . 10 68 . . . 10 . 9 Robot Hit Streak 29 | 6 8 5 23 29 . 12 23 5 15 28 11 . 9 Robot Miss Streak 7 | 1 4 3 3 1 . 2 7 2 3 3 5 . 4 Penetration Max . | . . . . . . . . . . . . . . Secondary Targets 12 | . 1 . 2 1 . . 4 . 2 . . . 2 Max Gunslinging Chain 1 | . 1 . 1 1 . . 1 . 1 . . . 1 Autonomous 71 | . . . . . . . . . . 65 . . 6 Shots Hit Robots 696 | 9 15 8 165 36 . 11 166 9 150 58 19 . 50 Core Hits 289 | 3 10 4 61 11 . 14 64 10 66 20 7 . 19 Critical Hits 21 | . 1 . 14 1 . 1 1 . . . 1 . 2 Critical Kills 10 | . . . 7 . . 1 1 . . . 1 . . Critical Parts Destroyed 8 | . 1 . 6 1 . . . . . . . . . Melee Attacks 23 | . . . . . . . 6 . 16 1 . . . Impact . | . . . . . . . . . . . . . . Slashing 23 | . . . . . . . 6 . 16 1 . . . Piercing . | . . . . . . . . . . . . . . Sneak Attacks . | . . . . . . . . . . . . . . Combat Hostiles . | . . . . . . . . . . . . . . Follow-up Attacks . | . . . . . . . . . . . . . . Damage Inflicted 13954 | 67 184 96 2860 786 . 430 2801 477 3192 1694 287 . 1080 Guns 10766 | 67 167 96 1541 310 . 183 2565 131 2689 1694 287 . 1036 Cannons 1572 | . . . 1277 295 . . . . . . . . . Explosions 1496 | . . . . 150 . 247 208 346 501 . . . 44 Melee . | . . . . . . . . . . . . . . Ramming 120 | . 17 . 42 31 . . 28 . 2 . . . . Kinetic 7416 | 67 93 37 1541 301 . . 1763 131 2689 . 174 . 620 Thermal 3585 | . . . 1277 295 . 34 . . . 1694 . . 285 Explosive 1462 | . . . . 150 . 213 208 346 501 . . . 44 Electromagnetic 1371 | . 74 59 . 9 . 183 802 . . . 113 . 131 Impact . | . . . . . . . . . . . . . . Slashing . | . . . . . . . . . . . . . . Piercing . | . . . . . . . . . . . . . . Highest Corruption 3 | . . . 3 3 3 3 1 1 3 . . . . Average Corruption 2 | . . . 2 3 3 3 1 1 1 . . . . Corruption Purged 5 | . . . . . . . . . 5 . . . . Effects 97 | . . . 32 28 6 5 17 3 6 . . . . Message Errors 36 | . . . 13 9 1 1 9 1 2 . . . . Matter Fused 14 | . . . 5 7 1 . . . 1 . . . . Heat Flow Errors 13 | . . . 5 3 . 2 . . 3 . . . . Energy Discharges 14 | . . . 3 4 3 1 3 . . . . . . Data Loss (minor) 15 | . . . 4 5 1 1 3 1 . . . . . Targeting Errors 4 | . . . 2 . . . 1 1 . . . . . Weapon Failures 1 | . . . . . . . 1 . . . . . . Overload Shots . | . . . . . . . . . . . . . . Overflow Damage 35 | . . . 1 . . . . 34 . . . . . Projectiles 1 | . . . 1 . . . . . . . . . . Explosions 34 | . . . . . . . . 34 . . . . . Melee . | . . . . . . . . . . . . . . Knockbacks 4 | . . . 1 . . . 3 . . . . . . Impact 3 | . . . 1 . . . 2 . . . . . . Kinetic . | . . . . . . . . . . . . . . Secondary 1 | . . . . . . . 1 . . . . . . Self-Inflicted Damage 211 | . . . . 41 . 83 63 . 24 . . . . Shots 6 | . . . . 1 . 2 1 . 2 . . . . Rammed 14 | . 4 . 4 2 . . 2 . 1 . . . 1 Targets Rammed 18 | . 4 . 5 3 . . 4 . 1 . . . 1 Kicked 2 | . . . . . . . 2 . . . . . . Crushed 2 | . . . 1 1 . . . . . . . . . Highest Temperature 406 | . 21 27 313 271 . 232 406 56 226 . 96 . 149 Average Temperature 59 | . 8 13 75 73 . 58 65 26 43 . 43 . 36 Received Heat Transfer 2295 | . 33 15 501 24 . 36 369 36 669 198 96 . 318 Effects 1 | . . . . . . . 1 . . . . . . Energy Bleed 1 | . . . . . . . 1 . . . . . . Siege Activations . | . . . . . . . . . . . . . . Robots Corrupted 1 | . . . . . . . 1 . . . . . . Combat Hostiles 1 | . . . . . . . 1 . . . . . . Parts Fried 6 | . . . . . . 1 5 . . . . . . Impact Corruptions . | . . . . . . . . . . . . . . Robots Melted 1 | . . . . . . . . . . 1 . . . Combat Hostiles 1 | . . . . . . . . . . 1 . . . Parts Melted 8 | . . . 2 1 . . . . . 5 . . . Heat Transferred 5341 | . . . 2257 518 . 50 . . . 2146 . . 370 Parts Sabotaged . | . . . . . . . . . . . . . . Parts Stolen 1 | . . . . . . . . . . . 1 . . Parts Stripped . | . . . . . . . . . . . . . . Power Chain Reactions 1 | . . . . . . 1 . . . . . . . Missiles Intercepted . | . . . . . . . . . . . . . . Alert | -11 -10 -10 -9 -9 -9 -8 -8 -8 -7 -7 -7 -7 -6 ------- Run | Scr Mat Min Mat Min Exi Min Mat Gar Fac Low Low Zio Pro Peak Influence 699 | 5 225 97 328 190 . 215 532 699 524 . . . . Initial 366 | . 3 17 . 111 . . 5 251 366 . . . . Average 218 | 1 73 25 148 99 . 97 225 495 389 . . . . Maximum Alert Level 2 | . 1 . 1 . . 1 2 2 2 . . . . Low Security (%) 51 | 100 91 100 64 100 . 91 49 . . . . . . Level 1 34 | . 8 . 35 . . 8 46 27 56 . . . . Level 2 14 | . . . . . . . 4 72 43 . . . . Level 3 . | . . . . . . . . . . . . . . Level 4 . | . . . . . . . . . . . . . . Level 5 . | . . . . . . . . . . . . . . High Security . | . . . . . . . . . . . . . . Max Security . | . . . . . . . . . . . . . . Squads Dispatched 20 | . . . 2 . . . 8 . 10 . . . . Investigation 1 | . . . . . . . 1 . . . . . . Extermination 4 | . . . . . . . . . 4 . . . . Reinforcement 6 | . . . 2 . . . . . 4 . . . . Assault 3 | . . . . . . . 1 . 2 . . . . Garrison 6 | . . . . . . . 6 . . . . . . Intercept . | . . . . . . . . . . . . . . Construction Impeded . | . . . . . . . . . . . . . . Haulers Reinforced 1 | . . . . . . . . . 1 . . . . Stealth | -11 -10 -10 -9 -9 -9 -8 -8 -8 -7 -7 -7 -7 -6 --------- Run | Scr Mat Min Mat Min Exi Min Mat Gar Fac Low Low Zio Pro Distress Signals 4 | . . . 2 . . . 1 . 1 . . . . Communications Jammed . | . . . . . . . . . . . . . . Distress Signals . | . . . . . . . . . . . . . . Times Spotted 237 | . 19 3 48 17 . 5 57 9 50 15 3 . 11 Peak Tracking Total 11 | . 4 2 5 3 . 3 4 3 8 11 1 . 4 Tactical Retreats 23 | . 7 1 1 5 . . 2 4 2 1 . . . Traps | -11 -10 -10 -9 -9 -9 -8 -8 -8 -7 -7 -7 -7 -6 ------- Run | Scr Mat Min Mat Min Exi Min Mat Gar Fac Low Low Zio Pro Traps Triggered 11 | . 1 . 3 . . . 1 3 3 . . . . Indirectly . | . . . . . . . . . . . . . . Trap Hack Attempts . | . . . . . . . . . . . . . . Triggered . | . . . . . . . . . . . . . . Disarmed . | . . . . . . . . . . . . . . Reprogrammed . | . . . . . . . . . . . . . . Reused . | . . . . . . . . . . . . . . Traps Extracted . | . . . . . . . . . . . . . . Installed . | . . . . . . . . . . . . . . Triggered . | . . . . . . . . . . . . . . Machines | -11 -10 -10 -9 -9 -9 -8 -8 -8 -7 -7 -7 -7 -6 ---------- Run | Scr Mat Min Mat Min Exi Min Mat Gar Fac Low Low Zio Pro Machines Disabled 9 | . . . 2 . . 1 3 2 . 1 . . . Max in Single Turn 2 | . . . 1 . . 1 1 2 . 1 . . . Garrison Access 2 | . . . . . . . . . 2 . . . . Machines Sabotaged . | . . . . . . . . . . . . . . Garrisons Compromised . | . . . . . . . . . . . . . . Overloaded Fab Kills . | . . . . . . . . . . . . . . Fab Network Shutdowns . | . . . . . . . . . . . . . . Hacking | -11 -10 -10 -9 -9 -9 -8 -8 -8 -7 -7 -7 -7 -6 --------- Run | Scr Mat Min Mat Min Exi Min Mat Gar Fac Low Low Zio Pro Machines Accessed 51 | . 9 3 14 . 1 . 12 . 10 2 . . . Terminals 33 | . 8 2 9 . . . 7 . 6 1 . . . Fabricators . | . . . . . . . . . . . . . . Repair Stations 4 | . . . 1 . . . 2 . 1 . . . . Recycling Units 4 | . 1 . 2 . . . 1 . . . . . . Scanalyzers 4 | . . . 2 . . . 1 . 1 . . . . Garrison Access 3 | . . . . . . . 1 . 2 . . . . Total Hacks 134 | . 29 5 35 . 1 . 38 . 21 5 . . . Successful 81 | . 14 3 22 . 1 . 22 . 14 5 . . . Failed 50 | . 14 1 13 . . . 15 . 7 . . . . Catastrophic 8 | . 2 . 3 . . . 1 . 2 . . . . Database Lockouts 3 | . 1 1 . . . . 1 . . . . . . Manual 79 | . 24 5 18 . 1 . 22 . 9 . . . . Terminals 97 | . 28 4 25 . . . 27 . 9 4 . . . Fabricators . | . . . . . . . . . . . . . . Repair Stations 10 | . . . 2 . . . 7 . 1 . . . . Recycling Units 4 | . 1 . 2 . . . 1 . . . . . . Scanalyzers 17 | . . . 6 . . . 2 . 9 . . . . Garrison Access 3 | . . . . . . . 1 . 2 . . . . Terminal Hacks 31 | . 9 3 4 . 1 . 9 . . 5 . . . Record 4 | . . . . . . . . . . 4 . . . Part Schematic 4 | . 2 1 . . . . 1 . . . . . . Robot Analysis 6 | . 4 . . . . . 2 . . . . . . Prototype ID Bank 3 | . 1 . . . . . 2 . . . . . . Open Door 2 | . . 1 . . . . . . . 1 . . . Branch Access Points 2 | . . 1 . . . . 1 . . . . . . Unreport Threat 2 | . . . 1 . . . 1 . . . . . . Locate Traps 3 | . 1 . 1 . . . 1 . . . . . . Hauler Manifests 3 | . 1 . 1 . . . 1 . . . . . . Zone Layout 1 | . . . 1 . . . . . . . . . . EX-Prototype ID Bank 1 | . . . . . 1 . . . . . . . . Fabricator Hacks . | . . . . . . . . . . . . . . Repair Station Hacks 5 | . . . 2 . . . 3 . . . . . . Scan Component 3 | . . . 1 . . . 2 . . . . . . Repair 2 | . . . 1 . . . 1 . . . . . . Recycling Unit Hacks 4 | . 1 . 2 . . . 1 . . . . . . Report Inventory 4 | . 1 . 2 . . . 1 . . . . . . Scanalyzer 16 | . . . 5 . . . 2 . 9 . . . . Insert Component 8 | . . . 3 . . . 1 . 4 . . . . Analyze 8 | . . . 2 . . . 1 . 5 . . . . Garrison Access Hacks 3 | . . . . . . . 1 . 2 . . . . Unlock Access 1 | . . . . . . . 1 . . . . . . Seal Access 2 | . . . . . . . . . 2 . . . . Unauthorized Hacks 22 | . 4 . 9 . . . 6 . 3 . . . . Terminals 22 | . 4 . 9 . . . 6 . 3 . . . . Track 7 | . 1 . 3 . . . 2 . 1 . . . . Assimilate 1 | . . . 1 . . . . . . . . . . Botnet 10 | . 2 . 4 . . . 2 . 2 . . . . Operators 4 | . 1 . 1 . . . 2 . . . . . . Fabricators . | . . . . . . . . . . . . . . Repair Stations . | . . . . . . . . . . . . . . Recycling Units . | . . . . . . . . . . . . . . Scanalyzers . | . . . . . . . . . . . . . . Garrison Access . | . . . . . . . . . . . . . . Data Cores Recovered . | . . . . . . . . . . . . . . Used . | . . . . . . . . . . . . . . Hacking Detections 42 | . 9 1 12 . . . 11 . 8 1 . . . Full Trace Events 1 | . . . . . . . . . . 1 . . . Feedback Events . | . . . . . . . . . . . . . . Feedback Blocked . | . . . . . . . . . . . . . . Robot Schematics Acquired . | . . . . . . . . . . . . . . Robots Built . | . . . . . . . . . . . . . . Matter . | . . . . . . . . . . . . . . Time . | . . . . . . . . . . . . . . Total Robot Build Rating . | . . . . . . . . . . . . . . Part Schematics Acquired 11 | . 2 1 2 . . . 2 . 4 . . . . Parts Built . | . . . . . . . . . . . . . . Matter . | . . . . . . . . . . . . . . Time . | . . . . . . . . . . . . . . Total Part Build Rating . | . . . . . . . . . . . . . . Parts Repaired 2 | . . . 1 . . . 1 . . . . . . Time 121 | . . . 51 . . . 70 . . . . . . Parts Recycled . | . . . . . . . . . . . . . . Recycled Matter . | . . . . . . . . . . . . . . Retrieved Matter . | . . . . . . . . . . . . . . Retrieved Components . | . . . . . . . . . . . . . . Parts Scanalyzed 7 | . . . 3 . . . 1 . 3 . . . . Part Schematics Acquired 7 | . . . 2 . . . 1 . 4 . . . . Parts Damaged 1 | . . . . . . . 1 . . . . . . Bothacking | -11 -10 -10 -9 -9 -9 -8 -8 -8 -7 -7 -7 -7 -6 ------------ Run | Scr Mat Min Mat Min Exi Min Mat Gar Fac Low Low Zio Pro Used RIF Installer 1 | . . . . . . . . 1 . . . . . Robots Hacked . | . . . . . . . . . . . . . . Non-combat . | . . . . . . . . . . . . . . Combat . | . . . . . . . . . . . . . . Robot Hacks Applied . | . . . . . . . . . . . . . . Relay Couplers Released . | . . . . . . . . . . . . . . Robots Rewired . | . . . . . . . . . . . . . . Allies Hacked . | . . . . . . . . . . . . . . Hacks Repelled . | . . . . . . . . . . . . . . Allies | -11 -10 -10 -9 -9 -9 -8 -8 -8 -7 -7 -7 -7 -6 -------- Run | Scr Mat Min Mat Min Exi Min Mat Gar Fac Low Low Zio Pro Total Allies . | . . . . . . . . . . . . . . Largest Group . | . . . . . . . . . . . . . . Highest-Rated Group . | . . . . . . . . . . . . . . Highest-Rated Ally . | . . . . . . . . . . . . . . Total Orders . | . . . . . . . . . . . . . . Ally Attacks . | . . . . . . . . . . . . . . Total Damage . | . . . . . . . . . . . . . . Kills . | . . . . . . . . . . . . . . Allies Corrupted . | . . . . . . . . . . . . . . Allies Melted . | . . . . . . . . . . . . . . Intel | -11 -10 -10 -9 -9 -9 -8 -8 -8 -7 -7 -7 -7 -6 ------- Run | Scr Mat Min Mat Min Exi Min Mat Gar Fac Low Low Zio Pro Robot Analysis Total 6 | . 4 . . . . . 2 . . . . . . Derelict Logs Recovered 8 | . . 2 . 1 . . . . . 1 2 . 2 Drone Launches . | . . . . . . . . . . . . . . Drone Recoveries . | . . . . . . . . . . . . . . Exploration | -11 -10 -10 -9 -9 -9 -8 -8 -8 -7 -7 -7 -7 -6 ------------- Run | Scr Mat Min Mat Min Exi Min Mat Gar Fac Low Low Zio Pro Turns Passed 24829 | 19 1502 1187 4835 1635 662 405 4568 1049 4191 1419 1756 156 1445 Spaces Moved 10887 | 3 791 645 1460 772 387 248 1456 282 2111 984 936 112 700 Core 9 | . . . . . . . . . . . . . 9 Treads 4897 | . 732 645 1460 772 286 . 565 245 191 1 . . . Legs 2311 | 3 59 . . . 101 248 891 37 964 . . . 8 Wheels 3670 | . . . . . . . . . 956 983 936 112 683 Hover . | . . . . . . . . . . . . . . Flight . | . . . . . . . . . . . . . . Fastest Speed 120 | 120 120 180 160 180 130 136 130 170 139 140 140 140 140 Average Speed 165 | 120 179 180 179 180 168 136 172 235 155 140 140 140 161 Slowest Speed 1750 | 120 180 180 180 180 180 136 245 245 290 200 140 140 1750 Overloaded Moves . | . . . . . . . . . . . . . . Propulsion Burnouts . | . . . . . . . . . . . . . . Robots Hopped . | . . . . . . . . . . . . . . Cave-ins Triggered . | . . . . . . . . . . . . . . Exploration Rate (%) 65 | 2 96 96 98 98 78 32 70 52 51 81 93 11 60 Regions Visited 13 Branch Regions 8 Pre-discovered Areas 6 | . . 2 . 1 . . . . . 2 1 . . Known Exits Taken 5 | . . . . . . . 1 . 1 1 1 1 . Unknown Exits Taken 7 | 1 1 1 1 1 1 1 . . . . . . . Scrap Searched 11 | . . 1 . 2 . 1 . . . 1 2 1 3 Spaces Dug 18 | . . . . . . . 6 . 12 . . . . Terrain Destroyed 167 | . . . . 9 . 68 18 14 36 6 . . 16 Melee 18 | . . . . . . . 6 . 12 . . . . Projectile 10 | . . . . . . . . . . 6 . . 4 AOE 139 | . . . . 9 . 68 12 14 24 . . . 12 Terrain Rammed . | . . . . . . . . . . . . . . Walls Destroyed . | . . . . . . . . . . . . . . Machines Disabled . | . . . . . . . . . . . . . . Actions | -11 -10 -10 -9 -9 -9 -8 -8 -8 -7 -7 -7 -7 -6 --------- Run | Scr Mat Min Mat Min Exi Min Mat Gar Fac Low Low Zio Pro Total 16968 | 8 856 663 3472 971 401 300 3317 655 2872 1024 1358 111 960 Wait 5194 | . 22 8 1808 162 . 32 1657 356 514 23 400 . 212 Move 10873 | 2 790 644 1459 771 386 247 1455 280 2110 983 935 111 700 Hop . | . . . . . . . . . . . . . . Pick Up 99 | . 14 2 24 3 3 3 15 . 23 5 3 . 4 Fast Attach 31 | . 1 . 7 . 2 . 8 . 11 1 1 . . Attach 28 | . . . 4 3 . 2 6 . 2 3 1 . 7 Detach 8 | . . . 1 2 1 . 3 . . 1 . . . Swap 99 | . 6 . 23 2 3 3 14 2 39 3 1 . 3 Drop 117 | . 7 3 32 2 6 2 20 . 38 4 2 . 1 Fire 463 | 6 12 6 109 23 . 11 129 11 110 . 14 . 32 Melee 23 | . . . . . . . 6 . 16 1 . . . Ram 1 | . . . . . . . . . . . . . 1 Kick 3 | . . . . . . . 3 . . . . . . Crush 14 | . 4 . 5 3 . . 1 . 1 . . . . Escape Stasis 14 | . . . . . . . . 6 8 . . . . Rewire 1 | . . . . . . . . . . . 1 . . Trap . | . . . . . . . . . . . . . . Miscellaneous . | . . . . . . . . . . . . . . Route ------- -11/Scrapyard -10/Materials (discovered 5 exits: *Mat x3 / *Min x2) -10/Mines (discovered 2 exits: *Mat x2) -9/Materials (discovered 4 exits: *Mat x3 / [*Min]) -9/Mines (discovered 4 exits: *Mat x2 / *Exi / *Zio) -9/Exiles -8/Mines -8/Materials (discovered 3 exits: *Fac x2 / Gar) -8/Garrison (discovered 2 exits: *Fac x2) -7/Factory (discovered 6 exits: *Fac x4 / *Low x2) -7/Lower Caves -7/Lower Caves (discovered 2 exits: *Fac / *Zio) -7/Zion -6/Proximity Caves History --------- Turn | Location | Event 14 | -11/Scrapyard | Discovered new exit (range 2) 20 | -11/Scrapyard | Entered Materials 210 | -10/Materials | Discovered new exit (range 15) 303 | -10/Materials | Build established: Mutant 343 | -10/Materials | Discovered new exit (range 7) 427 | -10/Materials | Discovered new exit (range 15) 503 | -10/Materials | Discovered new exit (range 13) 997 | -10/Materials | Discovered new exit (range 15) 1300 | -10/Materials | Central database locked down 1522 | -10/Materials | Entered Mines 1534 | -10/Mines | Found the Drone Emporium 1543 | -10/Mines | Found Prototype Device 1715 | -10/Mines | Learned location of Storage (-7) 1965 | -10/Mines | Discovered new exit (range 3) 2019 | -10/Mines | Central database locked down 2312 | -10/Mines | Found a damaged Exp. Sensor Array with a note attached 2316 | -10/Mines | Found Prototype Device 2321 | -10/Mines | Learned location of Mines (-8) 2337 | -10/Mines | Learned Materials terminal intel 2562 | -10/Mines | Discovered new exit (range 8) 2709 | -10/Mines | Entered Materials 2709 | -9/Materials | Evolved 2 slots: Propulsion x1, Utility x1 2710 | -9/Materials | Loaded intel: 12 terminal locations 3036 | -9/Materials | Build established: Hauler-Mutant 3342 | -9/Materials | Discovered new exit (range 12) 4689 | -9/Materials | Discovered new exit (range 4) 5085 | -9/Materials | Discovered new exit (range 16) 5675 | -9/Materials | Repaired Adv. Beam Cannon 7252 | -9/Materials | Identified Exp. Sensor Array 7387 | -9/Materials | Discovered new exit (range 5) 7544 | -9/Materials | Entered Mines 7580 | -9/Mines | Learned location of Zion (-7) 7612 | -9/Mines | Received a Rocket Launcher from a helpful Derelict 7774 | -9/Mines | Discovered new exit (range 12) 7948 | -9/Mines | A Derelict revealed a hidden shortcut to a safe place 7954 | -9/Mines | Assembled infested the area 8416 | -9/Mines | Core integrity fell below 50% 8516 | -9/Mines | Discovered new exit (range 9) 8851 | -9/Mines | Deemed a non-threat by the Exiles lab entrance 8874 | -9/Mines | Discovered new exit (range 5) 9179 | -9/Mines | Entered Exiles 9223 | -9/Exiles | Met 8R-AWN 9253 | -9/Exiles | Met EX-HEX 9343 | -9/Exiles | Met EX-DEC 9376 | -9/Exiles | Visited The Gauntlet 9577 | -9/Exiles | Met EX-BIN 9602 | -9/Exiles | Aligned with FarCom system 9604 | -9/Exiles | Given EX-Vault access code 9672 | -9/Exiles | Opened EX-Vault 9685 | -9/Exiles | Found Lightpack 2.0 9693 | -9/Exiles | Found AWS/Thermal 9702 | -9/Exiles | Found Potential Leg 9705 | -9/Exiles | Found Potential Leg 9736 | -9/Exiles | Warned to stay clear of 0b10 Research branches 9823 | -9/Exiles | Discovered new exit (range 14) 9841 | -9/Exiles | Stole three prototypes: Potential Leg, Lightpack 2.0, AWS/Thermal 9841 | -9/Exiles | Entered Mines 9913 | -8/Mines | Discovered new exit (range 15) 10246 | -8/Mines | Entered Materials 10246 | -8/Materials | Evolved 2 slots: Utility x2 11142 | -8/Materials | Garrison activated, responded to threat 11516 | -8/Materials | Garrison activated, responded to threat 12619 | -8/Materials | Discovered new exit (range 4) 14113 | -8/Materials | Discovered new exit (range 7) 14246 | -8/Materials | First assault squad dispatched 14395 | -8/Materials | Central database locked down 14507 | -8/Materials | Repaired Broken Cmb. Airjet 14811 | -8/Materials | Identified exit to Garrison 14814 | -8/Materials | Entered Garrison 15100 | -8/Garrison | Triggered checkpoint 15336 | -8/Garrison | Discovered new exit (range 13) 15636 | -8/Garrison | Triggered checkpoint 15821 | -8/Garrison | Discovered new exit (range 12) 15855 | -8/Garrison | Installed Relay Interface Framework 15863 | -8/Garrison | Entered Factory 15863 | -7/Factory | Evolved 2 slots: Propulsion x1, Utility x1 15865 | -7/Factory | FarCom data flow suspended 16070 | -7/Factory | Discovered new exit (range 4) 17308 | -7/Factory | Discovered new exit (range 14) 17338 | -7/Factory | Identified exit to Factory 18159 | -7/Factory | Discovered exit to Factory (range 7) 18782 | -7/Factory | Discovered exit to Factory (range 10) 19485 | -7/Factory | Discovered exit to Factory (range 6) 19863 | -7/Factory | First assault squad dispatched 19982 | -7/Factory | Discovered new exit (range 9) 19998 | -7/Factory | Identified exit to Lower Caves 20054 | -7/Factory | Entered Lower Caves 20386 | -7/Lower Caves | Encountered a Warlord checkpoint 20640 | -7/Lower Caves | Spotted B-75 Beast 20819 | -7/Lower Caves | Attracted the attention of an 0b10 base 20835 | -7/Lower Caves | Core integrity fell below 50% 20882 | -7/Lower Caves | Destroyed 10 combat bots 20960 | -7/Lower Caves | Identified exit to Lower Caves 20960 | -7/Lower Caves | Learned location of 1 exit from Lower Caves 21473 | -7/Lower Caves | Entered another Lower Caves area 21473 | -7/Lower Caves | Spotted I8-R6A(f) 21474 | -7/Lower Caves | Encountered a Master Thief 21474 | -7/Lower Caves | Identified exit to Zion 21495 | -7/Lower Caves | Lightpack 2.0 stolen by Master Thief 21581 | -7/Lower Caves | Encountered a Warlord checkpoint 21886 | -7/Lower Caves | Discovered exit to Factory (range 13) 22373 | -7/Lower Caves | Learned 4 Factory zone layouts 22376 | -7/Lower Caves | Spotted B-75 Beast 22421 | -7/Lower Caves | Attracted the attention of an 0b10 checkpoint 23229 | -7/Lower Caves | Entered Zion 23302 | -7/Zion | Discovered new exit (range 14) 23308 | -7/Zion | Given A8's code to call for help 23381 | -7/Zion | Identified exit to Proximity Caves 23385 | -7/Zion | Entered Proximity Caves 23395 | -6/Proximity Caves | Learned location of 1 exit from Factory 23576 | -6/Proximity Caves | Learned Factory stockpile data 23786 | -6/Proximity Caves | Received a Behemoth hack from an annoying Tinkerer 23867 | -6/Proximity Caves | Attracted the attention of an 0b10 checkpoint 24599 | -6/Proximity Caves | Spotted B-75 Beast 24660 | -6/Proximity Caves | Core integrity fell below 20% 24670 | -6/Proximity Caves | Destroyed B-75 Beast 24693 | -6/Proximity Caves | Lost 8 parts (1p2n1u4w) 24830 | -6/Proximity Caves | Destroyed by G-50 Soldier with Heavy Laser Last Messages --------------- 24643_ Enh. Autogun destroyed. 24643_ Knocked back. 24646_ Lgt. Nuclear Core destroyed. 24646_ Gravmag System destroyed. 24646_ Hvy. Battle Rifle destroyed. 24649_ Hvy. Missile Launcher destroyed. 24656_ AWS/Thermal destroyed. 24659_ B-75 Beast suffers critical hit. 24659_ Destroyed Med. Reflective Plating. 24662_ Potential Leg destroyed. 24662_ Lyr. Light Armor Plating destroyed. 24670_ B-75 Beast destroyed. 24678_ Imp. Cooling System fries itself beyond repair. 24686_ Coolant Injector fries itself beyond repair. 24734_ The unstable cave ceiling collapses. 24820_ Imp. Utility Shielding destroyed. 24822_ Enh. Autogun destroyed. 24825_ Knocked back. 24828_ Adv. Beam Rifle destroyed. 24830_ Slammed into B-48 Gladiator. Map ----- +----------------------------------------------------+ | ??????????# #???## #??????????????????????? | | ??????????# #????## ####???????????????????? | | ??????????# ##????# #???????????????????? | | ???????##### ##???##### #???????????????????? | | ??????## ## ##??????# #???????????????????? | | ?????## #??????# #???????????????????? | | ?????# ## #??????# #???????????????????? | | ?????# ##??????# #???????????????????? | | ?????## ##??????# #???????????????????? | | ??????###### #??????# #???????????????????? | | ???????????# ######## ###????????????????#? | | ??????????## ## #?????????????# #? | | ?????????## ### ######### #??########## #? | | ?????????# #?# #?????### #??# # | | ?????????# ####?? #????## #### ? | | ?????????## #????? #???## #???? | | ??????????###????? #?### ! ! #????? | | ?????????????????? ## % #?????? | | ?????????????????? ## g """ """ #?????? | | ?????????????????? ### g"""" " #?????? | | ??????????????????#??## "" " " ##????? | | ???????????????????#??### "" """ ###?## | | ?????????????????### ?### """ """" ### | | ???????????# ### ## """ " #? | | ??????????# b g #? | | ?????????# % @ " "" """" #?? | | ?????????# "" "" ##?? | | ??????????# ## ## " """" ##??# | | ??????????##### # "" " " #### | | ??????????????# ?## "" " "" | | ??????????????####????#### """ " "" | | ?????????????????????????## # #### | | ??????????????????????????# #####??? | | ??????????????????????????# #??????? | | ??????????????????????????#### ;;#########??????? | | ?????????????????????????????# ###??????????????? | | ?????????????????????????????####????????????????? | | ?????????????????????????????????????????????????? | | ?????????????????????????????????????????????????? | | ?????????????????????????????????????????????????? | | ?????????????????????????????????????????????????? | | ?????????????????????????????????????????????????? | | ?????????????????????????????????????????????????? | | ?????????????????????????????????????????????????? | | ?????????????????????????????????????????????????? | | ?????????????????????????????????????????????????? | | ?????????????????????????????????????????????????? | | ?????????????????????????????????????????????????? | | ?????????????????????????????????????????????????? | | | +----------------------------------------------------+ Best States ------------- Heat Dissipation 34 Energy Generation 16 Energy Capacity 290 Matter Stores 300 Matter Capacity 300 Sight Range 22 Robot Scan Range 30 Terrain Scan Density 10 Armor Coverage 600 Resistance: EM 15 Propulsion Shielding 33 Utility Shielding 66 Evasion (%) 40 Recoil Reduction 3 Item Schematics ----------------- Hcp. Storage Unit | -10/Materials | Hacked Grenade Launcher | -10/Materials | Hacked Lrg. Storage Unit | -10/Mines | Hacked Propulsion Shielding | -9/Materials | Scanalyzed Hacking Suite | -9/Materials | Scanalyzed Cmb. Airjet | -8/Materials | Scanalyzed Adv. Signal Interpreter | -8/Materials | Hacked Exp. Sensor Array | -7/Factory | Scanalyzed Imp. Utility Shielding | -7/Factory | Scanalyzed Lgt. Deuterium Engine | -7/Factory | Scanalyzed Gauss Rifle | -7/Factory | Scanalyzed Robot Schematics ------------------ None Fabricated ------------ Nothing Alien Tech Used ----------------- None Achievements -------------- None Challenges ------------ None Game ------ Seed DataGravityChainsword Manual? 0 Play Time 02:07:11 Cumulative 104.5 hours Start 2020.11.08 @ 19:53:00 End 2020.11.08 @ 23:49:30 Sessions 1 Manual Loads 0 Difficulty Rogue Special Mode Halloween2020/ForbiddenLore Game No. 85 Rogue 85 Adventurer 0 Explorer 0 Win Type - Total 2 Types 2/0/0/0/0/0/0/0/0 Lore% 41 Gallery% 54 Achievement% 41 Wizard Run 0 Options --------- ASCII 1 Keyboard 1 Movement Arrows Keybinds 0 Fullscreen 1 Font 24/Proggy Map View 76x50 Tactical HUD 1 Map Filters NONE Filters NONE Steam 1 RUN: 198f8eb3-27fe-408f-bf5a-02192059c063